Workbook

Sheet resultaten
D1: totaal | E1: totb | F1: totgem | G1: hoog | I1: laag | J1: 1 | K1: 2 | L1: 3 | M1: 4 | N1: 5 | O1: 6 | P1: 7 | Q1: 8 | R1: 9 | S1: 10 | T1: 11 | U1: 12 | V1: 13 | W1: 14 | X1: 15 | Y1: 16 | Z1: 17 | AA1: 18 | AB1: 19 | AC1: 20 | AD1: 21 | AE1: 22 | AF1: 23 | AG1: 24 | AH1: 25 | AI1: 26 | AJ1: 27 | AK1: 28 | AL1: 29 | AM1: 30 | AN1: 31 | AO1: 32 | AP1: 33 | AQ1: 34 | AR1: 35 | AS1: 36 | AT1: 37 | AU1: 38 | AV1: 39 | AW1: 40 | AX1: 41 | AY1: 42 | AZ1: 43 | BA1: 44 | BB1: 45 | BC1: 46 | BD1: 47 | BE1: 48 | BF1: 49 | BG1: 50 | BH1: 51 | BI1: 52 | BJ1: 53 | BK1: 54 | BL1: 55 | BM1: 56 | BN1: 57 | BO1: 58 | BP1: 59 | BQ1: 60 | BR1: 61 | BW1: 1 | BX1: 2 | BY1: 3 | BZ1: 4 | CA1: 5 | CB1: 6 | CC1: 7 | CD1: 8 | CE1: 9 | CF1: 10 | CG1: 11 | CH1: 12 | CI1: 13 | CJ1: 14 | CK1: 15 | CL1: totaal 15B
A2: Datum: | J2: 2023-03-29 | K2: 2023-04-05 | L2: 2023-04-08 | M2: 9-4 hapert | N2: 2023-04-12 | O2: 2023-04-19 | P2: 2023-04-22 | Q2: 2023-04-26 | R2: 2023-05-03 | S2: 2023-05-06 | T2: 2023-05-10 | U2: 2023-05-17 | V2: 2023-05-20 | W2: 2023-05-24 | X2: 2023-05-27 | Y2: 2023-05-29 | Z2: 2023-05-31 | AA2: 2023-06-04 | AB2: 2023-06-07 | AC2: 2023-06-10 | AD2: 2023-06-11 | AE2: 2023-06-14 | AF2: 2023-06-17 | AG2: 2023-06-21 | AH2: 2023-06-24 | AI2: 2023-06-28 | AJ2: 2023-07-01 | AK2: 2023-07-05 | AL2: 2023-07-12 | AM2: 2023-07-19 | AN2: 2023-07-22 | AO2: 2023-07-26 | AP2: 2023-07-29 | AQ2: 2023-08-02 | AR2: 2023-08-05 | AS2: 2023-08-09 | AT2: 2023-08-12 | AU2: 2023-08-16 | AV2: 2023-08-19 | AW2: 2023-08-23 | AX2: 2023-08-26 | AY2: 2023-08-30 | AZ2: 2023-09-05 | BA2: 2023-09-06 | BB2: 2023-09-09 | BC2: 2023-09-10 | BD2: 2023-09-13 | BE2: 2023-09-16 | BF2: 2023-09-20 | BG2: 2023-09-23 | BH2: 2023-09-27
B3: 1 | C3: =VLOOKUP(B3,Naam,2,FALSE) -> Martien van Woerkum | D3: =SUM($J3:$BR3) -> 239 | E3: =COUNT($J3:$BR3) -> 37 | F3: =IF(D3=0,0,ROUND(D3/E3,2)) -> 6.46 | G3: =MAX($J3:$AM3) -> 11 | I3: =MIN($J3:$AM3) -> 3 | J3: 6 | O3: 9 | Q3: 7 | R3: 5 | S3: 4 | T3: 5 | U3: 8 | V3: 8 | X3: 4 | Y3: 6 | AA3: 6 | AB3: 4 | AC3: 9 | AD3: 4 | AE3: 9 | AF3: 6 | AI3: 11 | AJ3: 3 | AL3: 10 | AM3: 8 | AO3: 8 | AP3: 7 | AQ3: 3 | AT3: 6 | AU3: 9 | AV3: 6 | AX3: 13 | AY3: 8 | AZ3: 3 | BA3: 3 | BB3: 9 | BC3: 7 | BD3: 4 | BE3: 5 | BF3: 9 | BG3: 2 | BH3: 5 | BW3: =IF(ISERROR(LARGE($J3:$BR3,BW$1)),"",LARGE($J3:$BR3,BW$1)) -> 13 | BX3: =IF(ISERROR(LARGE($J3:$BR3,BX$1)),"",LARGE($J3:$BR3,BX$1)) -> 11 | BY3: 10 | BZ3: 9 | CA3: 9 | CB3: 9 | CC3: 9 | CD3: 9 | CE3: 9 | CF3: 8 | CG3: 8 | CH3: 8 | CI3: 8 | CJ3: 8 | CK3: 7 | CL3: =IF(COUNT(BW3:CK3)=15,SUM(BW3:CK3),0) -> 135
B4: 2 | C4: Jack de Graaf | D4: 157 | E4: 29 | F4: 5.41 | G4: 9 | I4: 2 | J4: 2 | N4: 8 | O4: 5 | P4: 4 | S4: 7 | U4: 4 | V4: 6 | Y4: 6 | AA4: 9 | AC4: 6 | AD4: 4 | AE4: 4 | AH4: 7 | AJ4: 6 | AL4: 3 | AN4: 4 | AO4: 5 | AQ4: 5 | AS4: 5 | AT4: 8 | AU4: 9 | AX4: 6 | AY4: 7 | AZ4: 2 | BD4: 4 | BE4: 4 | BF4: 4 | BG4: 6 | BH4: 7 | BW4: 9 | BX4: =IF(ISERROR(LARGE($J4:$BR4,BX$1)),"",LARGE($J4:$BR4,BX$1)) -> 9 | BY4: 8 | BZ4: 8 | CA4: 7 | CB4: 7 | CC4: 7 | CD4: 7 | CE4: 6 | CF4: 6 | CG4: 6 | CH4: 6 | CI4: 6 | CJ4: 6 | CK4: 5 | CL4: 103
B5: 3 | C5: Nico Borgmans | D5: 13 | E5: 2 | F5: 6.5 | G5: 8 | I5: 5 | Y5: 8 | AB5: 5 | BW5: 8 | BX5: =IF(ISERROR(LARGE($J5:$BR5,BX$1)),"",LARGE($J5:$BR5,BX$1)) -> 5 | CL5: 0
B6: 4 | C6: Cees Brekelmans | D6: 178 | E6: 25 | F6: 7.12 | G6: 11 | I6: 5 | L6: 11 | N6: 6 | O6: 10 | R6: 9 | S6: 10 | V6: 7 | Y6: 11 | AB6: 7 | AD6: 5 | AE6: 6 | AF6: 7 | AG6: 8 | AI6: 5 | AJ6: 6 | AK6: 8 | AO6: 8 | AQ6: 3 | AS6: 11 | AV6: 7 | AX6: 4 | AY6: 8 | AZ6: 4 | BC6: 7 | BD6: 4 | BF6: 6 | BW6: 11 | BX6: =IF(ISERROR(LARGE($J6:$BR6,BX$1)),"",LARGE($J6:$BR6,BX$1)) -> 11 | BY6: 11 | BZ6: 10 | CA6: 10 | CB6: 9 | CC6: 8 | CD6: 8 | CE6: 8 | CF6: 8 | CG6: 7 | CH6: 7 | CI6: 7 | CJ6: 7 | CK6: 7 | CL6: 129
B7: 5 | C7: Christ van Dongen | D7: 75 | E7: 21 | F7: 3.57 | G7: 6 | I7: 1 | L7: 4 | R7: 4 | U7: 6 | W7: 2 | X7: 4 | Y7: 4 | AA7: 2 | AB7: 5 | AC7: 5 | AE7: 4 | AL7: 1 | AM7: 4 | AN7: 3 | AO7: 3 | AR7: 2 | AV7: 1 | AW7: 5 | AY7: 2 | BC7: 6 | BE7: 4 | BG7: 4 | BW7: 6 | BX7: =IF(ISERROR(LARGE($J7:$BR7,BX$1)),"",LARGE($J7:$BR7,BX$1)) -> 6 | BY7: 5 | BZ7: 5 | CA7: 5 | CB7: 4 | CC7: 4 | CD7: 4 | CE7: 4 | CF7: 4 | CG7: 4 | CH7: 4 | CI7: 4 | CJ7: 3 | CK7: 3 | CL7: 65
B8: 6 | C8: Ingrid van Dongen | D8: 0 | E8: 0 | F8: 0 | G8: 0 | I8: 0 | BX8: =IF(ISERROR(LARGE($J8:$BR8,BX$1)),"",LARGE($J8:$BR8,BX$1)) ->  | CL8: 0
B9: 7 | C9: Jeroen van Dongen | D9: 12 | E9: 3 | F9: 4 | G9: 9 | I9: 9 | Y9: 9 | AZ9: 0 | BC9: 3 | BW9: 9 | BX9: =IF(ISERROR(LARGE($J9:$BR9,BX$1)),"",LARGE($J9:$BR9,BX$1)) -> 3 | BY9: 0 | CL9: =IF(COUNT(BW9:CK9)=15,SUM(BW9:CK9),0) -> 0
B10: 8 | C10: Dave Geysen | D10: 5 | E10: 1 | F10: 5 | G10: 0 | I10: 0 | AZ10: 5 | BW10: 5 | BX10: =IF(ISERROR(LARGE($J10:$BR10,BX$1)),"",LARGE($J10:$BR10,BX$1)) ->  | CL10: 0
B11: 9 | C11: Gust Gijbels | D11: 93 | E11: 10 | F11: 9.3 | G11: 13 | I11: 5 | K11: 8 | N11: 5 | AJ11: 13 | AO11: 10 | AQ11: 10 | AS11: 11 | AX11: 10 | AY11: 10 | AZ11: 9 | BC11: 7 | BW11: 13 | BX11: =IF(ISERROR(LARGE($J11:$BR11,BX$1)),"",LARGE($J11:$BR11,BX$1)) -> 11 | BY11: 10 | BZ11: 10 | CA11: 10 | CB11: 10 | CC11: 9 | CD11: 8 | CE11: 7 | CF11: 5 | CL11: 0
B12: 10 | C12: Jos Wouters | D12: 200 | E12: 38 | F12: 5.26 | G12: 10 | I12: 2 | J12: 7 | K12: 10 | L12: 7 | N12: 7 | O12: 9 | Q12: 7 | R12: 4 | S12: 7 | T12: 3 | U12: 5 | V12: 6 | W12: 5 | X12: 4 | Y12: 6 | Z12: 7 | AA12: 2 | AB12: 5 | AC12: 3 | AD12: 4 | AE12: 8 | AG12: 2 | AI12: 5 | AJ12: 2 | AK12: 8 | AL12: 2 | AM12: 4 | AN12: 8 | AO12: 2 | AQ12: 3 | AR12: 3 | AW12: 6 | AX12: 4 | AY12: 1 | AZ12: 8 | BA12: 5 | BB12: 8 | BC12: 6 | BD12: 7 | BW12: 10 | BX12: =IF(ISERROR(LARGE($J12:$BR12,BX$1)),"",LARGE($J12:$BR12,BX$1)) -> 9 | BY12: 8 | BZ12: 8 | CA12: 8 | CB12: 8 | CC12: 8 | CD12: 7 | CE12: 7 | CF12: 7 | CG12: 7 | CH12: 7 | CI12: 7 | CJ12: 7 | CK12: 6 | CL12: 114
B13: 11 | C13: Wim van Rooij | D13: 266 | E13: 39 | F13: 6.82 | G13: 10 | I13: 3 | J13: 4 | K13: 4 | L13: 3 | N13: 10 | O13: 6 | Q13: 8 | R13: 5 | S13: 5 | T13: 9 | U13: 9 | V13: 7 | W13: 8 | X13: 4 | Y13: 3 | Z13: 4 | AE13: 9 | AG13: 5 | AH13: 6 | AI13: 4 | AJ13: 4 | AL13: 7 | AM13: 8 | AN13: 1 | AO13: 8 | AS13: 9 | AT13: 12 | AU13: 9 | AV13: 9 | AW13: 7 | AX13: 10 | AY13: 9 | AZ13: 10 | BA13: 5 | BB13: 7 | BC13: 10 | BD13: 5 | BF13: 8 | BG13: 6 | BH13: 9 | BW13: 12 | BX13: =IF(ISERROR(LARGE($J13:$BR13,BX$1)),"",LARGE($J13:$BR13,BX$1)) -> 10 | BY13: 10 | BZ13: 10 | CA13: 10 | CB13: 9 | CC13: 9 | CD13: 9 | CE13: 9 | CF13: 9 | CG13: 9 | CH13: 9 | CI13: 9 | CJ13: 8 | CK13: 8 | CL13: 140
B14: 12 | C14: Harry Kloppenburg | D14: 0 | E14: 0 | F14: 0 | G14: 0 | I14: 0 | BX14: =IF(ISERROR(LARGE($J14:$BR14,BX$1)),"",LARGE($J14:$BR14,BX$1)) ->  | CL14: 0
B15: 13 | C15: Olav Kruijssen | D15: 9 | E15: 1 | F15: 9 | G15: 9 | I15: 9 | Y15: 9 | BW15: 9 | BX15: =IF(ISERROR(LARGE($J15:$BR15,BX$1)),"",LARGE($J15:$BR15,BX$1)) ->  | CL15: 0
B16: 14 | C16: Bart de Laat | D16: 359 | E16: 49 | F16: 7.33 | G16: 11 | I16: 4 | J16: 4 | K16: 4 | L16: 8 | M16: 10 | N16: 9 | O16: 7 | P16: 8 | Q16: 10 | R16: 8 | S16: 6 | T16: 11 | U16: 8 | W16: 5 | X16: 9 | Y16: 8 | Z16: 10 | AA16: 10 | AB16: 11 | AC16: 6 | AD16: 11 | AF16: 8 | AG16: 8 | AH16: 5 | AI16: 7 | AJ16: 9 | AK16: 6 | AL16: 4 | AM16: 11 | AN16: 7 | AO16: 10 | AP16: 9 | AQ16: 7 | AR16: 10 | AS16: 10 | AT16: 13 | AU16: 6 | AV16: 1 | AW16: 5 | AX16: 9 | AY16: 4 | AZ16: 9 | BA16: 4 | BB16: 6 | BC16: 3 | BD16: 3 | BE16: 6 | BF16: 7 | BG16: 3 | BH16: 6 | BW16: 13 | BX16: =IF(ISERROR(LARGE($J16:$BR16,BX$1)),"",LARGE($J16:$BR16,BX$1)) -> 11 | BY16: 11 | BZ16: 11 | CA16: 11 | CB16: 10 | CC16: 10 | CD16: 10 | CE16: 10 | CF16: 10 | CG16: 10 | CH16: 10 | CI16: 9 | CJ16: 9 | CK16: 9 | CL16: 154
B17: 15 | C17: Sjaan Paridaans | D17: 0 | E17: 0 | F17: 0 | G17: 0 | I17: 0 | BX17: =IF(ISERROR(LARGE($J17:$BR17,BX$1)),"",LARGE($J17:$BR17,BX$1)) ->  | CL17: 0
B18: 16 | C18: Cees Jansen | D18: 0 | E18: 0 | F18: 0 | G18: 0 | I18: 0 | BX18: =IF(ISERROR(LARGE($J18:$BR18,BX$1)),"",LARGE($J18:$BR18,BX$1)) ->  | CL18: 0
B19: 17 | C19: Marly Paridaans | D19: 0 | E19: 1 | F19: 0 | G19: 0 | I19: 0 | Y19: 0 | BW19: 0 | BX19: =IF(ISERROR(LARGE($J19:$BR19,BX$1)),"",LARGE($J19:$BR19,BX$1)) ->  | CL19: 0
B20: 18 | C20: Daniëlle Dierckx | D20: 10 | E20: 3 | F20: 3.33 | G20: 6 | I20: 2 | K20: 2 | Y20: 6 | AS20: 2 | BW20: 6 | BX20: =IF(ISERROR(LARGE($J20:$BR20,BX$1)),"",LARGE($J20:$BR20,BX$1)) -> 2 | BY20: 2 | CL20: 0
B21: 19 | C21: Marcel Paridaans | D21: 44 | E21: 13 | F21: 3.38 | G21: 6 | I21: 0 | L21: 1 | R21: 2 | S21: 0 | U21: 6 | V21: 2 | W21: 5 | X21: 6 | Y21: 6 | Z21: 6 | AB21: 4 | AC21: 3 | AD21: 0 | AE21: 3 | BW21: 6 | BX21: =IF(ISERROR(LARGE($J21:$BR21,BX$1)),"",LARGE($J21:$BR21,BX$1)) -> 6 | BY21: 6 | BZ21: 6 | CA21: 5 | CB21: 4 | CC21: 3 | CD21: 3 | CE21: 2 | CF21: 2 | CG21: 1 | CH21: 0 | CI21: 0 | CL21: 0
B22: 20 | C22: 0 | D22: 0 | E22: 0 | F22: 0 | G22: 0 | I22: 0 | BX22: =IF(ISERROR(LARGE($J22:$BR22,BX$1)),"",LARGE($J22:$BR22,BX$1)) ->  | CL22: 0
B23: 21 | C23: 0 | D23: 0 | E23: 0 | F23: 0 | G23: 0 | I23: 0 | BX23: =IF(ISERROR(LARGE($J23:$BR23,BX$1)),"",LARGE($J23:$BR23,BX$1)) ->  | CL23: 0
B24: 22 | C24: 0 | D24: 0 | E24: 0 | F24: 0 | G24: 0 | I24: 0 | BX24: =IF(ISERROR(LARGE($J24:$BR24,BX$1)),"",LARGE($J24:$BR24,BX$1)) ->  | CL24: 0
B25: 23 | C25: 0 | D25: 0 | E25: 0 | F25: 0 | G25: 0 | I25: 0 | BX25: =IF(ISERROR(LARGE($J25:$BR25,BX$1)),"",LARGE($J25:$BR25,BX$1)) ->  | CL25: 0
B26: 24 | C26: 0 | D26: 0 | E26: 0 | F26: 0 | G26: 0 | I26: 0 | BX26: =IF(ISERROR(LARGE($J26:$BR26,BX$1)),"",LARGE($J26:$BR26,BX$1)) ->  | CL26: 0
B27: 25 | C27: 0 | D27: 0 | E27: 0 | F27: 0 | G27: 0 | I27: 0 | BX27: =IF(ISERROR(LARGE($J27:$BR27,BX$1)),"",LARGE($J27:$BR27,BX$1)) ->  | CL27: 0
B28: 26 | C28: 0 | D28: 0 | E28: 0 | F28: 0 | BW28: =IF(ISERROR(LARGE($J28:$BR28,BW$1)),"",LARGE($J28:$BR28,BW$1)) ->  | CL28: 0
B29: 27 | C29: 0 | D29: 0 | E29: 0 | F29: 0 | CL29: 0
B30: 28 | C30: 0 | D30: 0 | E30: 0 | F30: 0 | CL30: 0
B31: 29 | C31: 0 | D31: 0 | E31: 0 | F31: 0 | CL31: 0
B32: 30 | C32: 0 | D32: 0 | E32: 0 | F32: =IF(D32=0,0,ROUND(D32/E32,2)) -> 0 | CL32: =IF(COUNT(BW32:CK32)=15,SUM(BW32:CK32),0) -> 0
B33: 31 | CL33: =IF(COUNT(BW33:CK33)=15,SUM(BW33:CK33),0) -> 0
B34: 32 | CL34: 0
B35: 33 | CL35: 0
B36: 34 | CL36: 0
B37: 35 | CL37: 0
B38: 36 | CL38: 0
B39: 37 | CL39: 0
B40: 38 | CL40: 0
B41: 39 | CL41: 0
B42: 40 | CL42: 0

Sheet standenlijst
A1: Stand | B1: Nr | C1: Naam Deelnemers | D1: Aantal B15 | E1: Gem B15 | F1: Aantal Totaal | G1: Gem Totaal | H1: Beurten tot. | I1: Gem B15 vjr | J1: Gem B15 djr | K1: Stijging tov vjr
A2: 1 | B2: 14 | C2: =IF(ISERROR(VLOOKUP(B2,resultaten!$B$3:$CL$40,2,FALSE)),"",VLOOKUP(B2,resultaten!$B$3:$CL$40,2,FALSE)) -> Bart de Laat | D2: =IF(ISERROR(VLOOKUP(B2,resultaten!$B$3:$CL$41,89,FALSE)),0,VLOOKUP(B2,resultaten!$B$3:$CL$41,89,FALSE)) -> 154 | E2: =IF(D2="","",ROUND(D2/15,2)) -> 10.27 | F2: =IF(ISERROR(VLOOKUP($B2,resultaten!$B$3:$CL$41,3,FALSE)),0,VLOOKUP($B2,resultaten!$B$3:$CL$41,3,FALSE)) -> 359 | G2: =IF(ISERROR(VLOOKUP($B2,resultaten!$B$3:$CL$41,5,FALSE)),0,VLOOKUP($B2,resultaten!$B$3:$CL$41,5,FALSE)) -> 7.33 | H2: =IF(ISERROR(VLOOKUP($B2,resultaten!$B$3:$CL$41,4,FALSE)),0,VLOOKUP($B2,resultaten!$B$3:$CL$41,4,FALSE)) -> 49 | I2: 11.33 | J2: =E2 -> 10.27 | K2: =IF(OR(I2=0,J2=0,J2<I2),"",J2-I2) -> 
A3: 2 | B3: 11 | C3: =IF(ISERROR(VLOOKUP(B3,resultaten!$B$3:$CL$40,2,FALSE)),"",VLOOKUP(B3,resultaten!$B$3:$CL$40,2,FALSE)) -> Wim van Rooij | D3: =IF(ISERROR(VLOOKUP(B3,resultaten!$B$3:$CL$41,89,FALSE)),0,VLOOKUP(B3,resultaten!$B$3:$CL$41,89,FALSE)) -> 140 | E3: 9.33 | F3: =IF(ISERROR(VLOOKUP($B3,resultaten!$B$3:$CL$41,3,FALSE)),0,VLOOKUP($B3,resultaten!$B$3:$CL$41,3,FALSE)) -> 266 | G3: =IF(ISERROR(VLOOKUP($B3,resultaten!$B$3:$CL$41,5,FALSE)),0,VLOOKUP($B3,resultaten!$B$3:$CL$41,5,FALSE)) -> 6.82 | H3: =IF(ISERROR(VLOOKUP($B3,resultaten!$B$3:$CL$41,4,FALSE)),0,VLOOKUP($B3,resultaten!$B$3:$CL$41,4,FALSE)) -> 39 | I3: 9.6 | J3: 9.33
A4: 3 | B4: 1 | C4: =IF(ISERROR(VLOOKUP(B4,resultaten!$B$3:$CL$40,2,FALSE)),"",VLOOKUP(B4,resultaten!$B$3:$CL$40,2,FALSE)) -> Martien van Woerkum | D4: =IF(ISERROR(VLOOKUP(B4,resultaten!$B$3:$CL$41,89,FALSE)),0,VLOOKUP(B4,resultaten!$B$3:$CL$41,89,FALSE)) -> 135 | E4: 9 | F4: =IF(ISERROR(VLOOKUP($B4,resultaten!$B$3:$CL$41,3,FALSE)),0,VLOOKUP($B4,resultaten!$B$3:$CL$41,3,FALSE)) -> 239 | G4: =IF(ISERROR(VLOOKUP($B4,resultaten!$B$3:$CL$41,5,FALSE)),0,VLOOKUP($B4,resultaten!$B$3:$CL$41,5,FALSE)) -> 6.46 | H4: =IF(ISERROR(VLOOKUP($B4,resultaten!$B$3:$CL$41,4,FALSE)),0,VLOOKUP($B4,resultaten!$B$3:$CL$41,4,FALSE)) -> 37 | I4: 8.27 | J4: 9 | K4: 0.73
A5: 4 | B5: 4 | C5: =IF(ISERROR(VLOOKUP(B5,resultaten!$B$3:$CL$40,2,FALSE)),"",VLOOKUP(B5,resultaten!$B$3:$CL$40,2,FALSE)) -> Cees Brekelmans | D5: =IF(ISERROR(VLOOKUP(B5,resultaten!$B$3:$CL$41,89,FALSE)),0,VLOOKUP(B5,resultaten!$B$3:$CL$41,89,FALSE)) -> 129 | E5: 8.6 | F5: =IF(ISERROR(VLOOKUP($B5,resultaten!$B$3:$CL$41,3,FALSE)),0,VLOOKUP($B5,resultaten!$B$3:$CL$41,3,FALSE)) -> 178 | G5: =IF(ISERROR(VLOOKUP($B5,resultaten!$B$3:$CL$41,5,FALSE)),0,VLOOKUP($B5,resultaten!$B$3:$CL$41,5,FALSE)) -> 7.12 | H5: =IF(ISERROR(VLOOKUP($B5,resultaten!$B$3:$CL$41,4,FALSE)),0,VLOOKUP($B5,resultaten!$B$3:$CL$41,4,FALSE)) -> 25 | I5: 9.73 | J5: 8.6
A6: 5 | B6: 10 | C6: =IF(ISERROR(VLOOKUP(B6,resultaten!$B$3:$CL$40,2,FALSE)),"",VLOOKUP(B6,resultaten!$B$3:$CL$40,2,FALSE)) -> Jos Wouters | D6: =IF(ISERROR(VLOOKUP(B6,resultaten!$B$3:$CL$41,89,FALSE)),0,VLOOKUP(B6,resultaten!$B$3:$CL$41,89,FALSE)) -> 114 | E6: 7.6 | F6: =IF(ISERROR(VLOOKUP($B6,resultaten!$B$3:$CL$41,3,FALSE)),0,VLOOKUP($B6,resultaten!$B$3:$CL$41,3,FALSE)) -> 200 | G6: =IF(ISERROR(VLOOKUP($B6,resultaten!$B$3:$CL$41,5,FALSE)),0,VLOOKUP($B6,resultaten!$B$3:$CL$41,5,FALSE)) -> 5.26 | H6: =IF(ISERROR(VLOOKUP($B6,resultaten!$B$3:$CL$41,4,FALSE)),0,VLOOKUP($B6,resultaten!$B$3:$CL$41,4,FALSE)) -> 38 | I6: 8.27 | J6: 7.6
A7: 6 | B7: 2 | C7: =IF(ISERROR(VLOOKUP(B7,resultaten!$B$3:$CL$40,2,FALSE)),"",VLOOKUP(B7,resultaten!$B$3:$CL$40,2,FALSE)) -> Jack de Graaf | D7: =IF(ISERROR(VLOOKUP(B7,resultaten!$B$3:$CL$41,89,FALSE)),0,VLOOKUP(B7,resultaten!$B$3:$CL$41,89,FALSE)) -> 103 | E7: 6.87 | F7: =IF(ISERROR(VLOOKUP($B7,resultaten!$B$3:$CL$41,3,FALSE)),0,VLOOKUP($B7,resultaten!$B$3:$CL$41,3,FALSE)) -> 157 | G7: =IF(ISERROR(VLOOKUP($B7,resultaten!$B$3:$CL$41,5,FALSE)),0,VLOOKUP($B7,resultaten!$B$3:$CL$41,5,FALSE)) -> 5.41 | H7: =IF(ISERROR(VLOOKUP($B7,resultaten!$B$3:$CL$41,4,FALSE)),0,VLOOKUP($B7,resultaten!$B$3:$CL$41,4,FALSE)) -> 29 | I7: 6.93 | J7: 6.87
A8: 7 | B8: 5 | C8: =IF(ISERROR(VLOOKUP(B8,resultaten!$B$3:$CL$40,2,FALSE)),"",VLOOKUP(B8,resultaten!$B$3:$CL$40,2,FALSE)) -> Christ van Dongen | D8: =IF(ISERROR(VLOOKUP(B8,resultaten!$B$3:$CL$41,89,FALSE)),0,VLOOKUP(B8,resultaten!$B$3:$CL$41,89,FALSE)) -> 65 | E8: 4.33 | F8: =IF(ISERROR(VLOOKUP($B8,resultaten!$B$3:$CL$41,3,FALSE)),0,VLOOKUP($B8,resultaten!$B$3:$CL$41,3,FALSE)) -> 75 | G8: =IF(ISERROR(VLOOKUP($B8,resultaten!$B$3:$CL$41,5,FALSE)),0,VLOOKUP($B8,resultaten!$B$3:$CL$41,5,FALSE)) -> 3.57 | H8: =IF(ISERROR(VLOOKUP($B8,resultaten!$B$3:$CL$41,4,FALSE)),0,VLOOKUP($B8,resultaten!$B$3:$CL$41,4,FALSE)) -> 21 | I8: 4.67 | J8: 4.33 | N8: Om de standenlijst te sorteren druk op boventaande knop!
A9: 8 | B9: 9 | C9: =IF(ISERROR(VLOOKUP(B9,resultaten!$B$3:$CL$40,2,FALSE)),"",VLOOKUP(B9,resultaten!$B$3:$CL$40,2,FALSE)) -> Gust Gijbels | D9: =IF(ISERROR(VLOOKUP(B9,resultaten!$B$3:$CL$41,89,FALSE)),0,VLOOKUP(B9,resultaten!$B$3:$CL$41,89,FALSE)) -> 0 | E9: 0 | F9: =IF(ISERROR(VLOOKUP($B9,resultaten!$B$3:$CL$41,3,FALSE)),0,VLOOKUP($B9,resultaten!$B$3:$CL$41,3,FALSE)) -> 93 | G9: =IF(ISERROR(VLOOKUP($B9,resultaten!$B$3:$CL$41,5,FALSE)),0,VLOOKUP($B9,resultaten!$B$3:$CL$41,5,FALSE)) -> 9.3 | H9: =IF(ISERROR(VLOOKUP($B9,resultaten!$B$3:$CL$41,4,FALSE)),0,VLOOKUP($B9,resultaten!$B$3:$CL$41,4,FALSE)) -> 10 | I9: 10.2 | J9: 0
A10: 9 | B10: 13 | C10: =IF(ISERROR(VLOOKUP(B10,resultaten!$B$3:$CL$40,2,FALSE)),"",VLOOKUP(B10,resultaten!$B$3:$CL$40,2,FALSE)) -> Olav Kruijssen | D10: =IF(ISERROR(VLOOKUP(B10,resultaten!$B$3:$CL$41,89,FALSE)),0,VLOOKUP(B10,resultaten!$B$3:$CL$41,89,FALSE)) -> 0 | E10: 0 | F10: =IF(ISERROR(VLOOKUP($B10,resultaten!$B$3:$CL$41,3,FALSE)),0,VLOOKUP($B10,resultaten!$B$3:$CL$41,3,FALSE)) -> 9 | G10: =IF(ISERROR(VLOOKUP($B10,resultaten!$B$3:$CL$41,5,FALSE)),0,VLOOKUP($B10,resultaten!$B$3:$CL$41,5,FALSE)) -> 9 | H10: =IF(ISERROR(VLOOKUP($B10,resultaten!$B$3:$CL$41,4,FALSE)),0,VLOOKUP($B10,resultaten!$B$3:$CL$41,4,FALSE)) -> 1 | I10: 0 | J10: 0
A11: 10 | B11: 3 | C11: =IF(ISERROR(VLOOKUP(B11,resultaten!$B$3:$CL$40,2,FALSE)),"",VLOOKUP(B11,resultaten!$B$3:$CL$40,2,FALSE)) -> Nico Borgmans | D11: =IF(ISERROR(VLOOKUP(B11,resultaten!$B$3:$CL$41,89,FALSE)),0,VLOOKUP(B11,resultaten!$B$3:$CL$41,89,FALSE)) -> 0 | E11: 0 | F11: =IF(ISERROR(VLOOKUP($B11,resultaten!$B$3:$CL$41,3,FALSE)),0,VLOOKUP($B11,resultaten!$B$3:$CL$41,3,FALSE)) -> 13 | G11: =IF(ISERROR(VLOOKUP($B11,resultaten!$B$3:$CL$41,5,FALSE)),0,VLOOKUP($B11,resultaten!$B$3:$CL$41,5,FALSE)) -> 6.5 | H11: =IF(ISERROR(VLOOKUP($B11,resultaten!$B$3:$CL$41,4,FALSE)),0,VLOOKUP($B11,resultaten!$B$3:$CL$41,4,FALSE)) -> 2 | I11: 0 | J11: 0
A12: 11 | B12: 8 | C12: =IF(ISERROR(VLOOKUP(B12,resultaten!$B$3:$CL$40,2,FALSE)),"",VLOOKUP(B12,resultaten!$B$3:$CL$40,2,FALSE)) -> Dave Geysen | D12: =IF(ISERROR(VLOOKUP(B12,resultaten!$B$3:$CL$41,89,FALSE)),0,VLOOKUP(B12,resultaten!$B$3:$CL$41,89,FALSE)) -> 0 | E12: 0 | F12: =IF(ISERROR(VLOOKUP($B12,resultaten!$B$3:$CL$41,3,FALSE)),0,VLOOKUP($B12,resultaten!$B$3:$CL$41,3,FALSE)) -> 5 | G12: =IF(ISERROR(VLOOKUP($B12,resultaten!$B$3:$CL$41,5,FALSE)),0,VLOOKUP($B12,resultaten!$B$3:$CL$41,5,FALSE)) -> 5 | H12: =IF(ISERROR(VLOOKUP($B12,resultaten!$B$3:$CL$41,4,FALSE)),0,VLOOKUP($B12,resultaten!$B$3:$CL$41,4,FALSE)) -> 1 | I12: 0 | J12: 0
A13: 12 | B13: 7 | C13: =IF(ISERROR(VLOOKUP(B13,resultaten!$B$3:$CL$40,2,FALSE)),"",VLOOKUP(B13,resultaten!$B$3:$CL$40,2,FALSE)) -> Jeroen van Dongen | D13: =IF(ISERROR(VLOOKUP(B13,resultaten!$B$3:$CL$41,89,FALSE)),"",VLOOKUP(B13,resultaten!$B$3:$CL$41,89,FALSE)) -> 0 | E13: 0 | F13: =IF(ISERROR(VLOOKUP($B13,resultaten!$B$3:$CL$41,3,FALSE)),"",VLOOKUP($B13,resultaten!$B$3:$CL$41,3,FALSE)) -> 12 | G13: =IF(ISERROR(VLOOKUP($B13,resultaten!$B$3:$CL$41,5,FALSE)),"",VLOOKUP($B13,resultaten!$B$3:$CL$41,5,FALSE)) -> 4 | H13: =IF(ISERROR(VLOOKUP($B13,resultaten!$B$3:$CL$41,4,FALSE)),"",VLOOKUP($B13,resultaten!$B$3:$CL$41,4,FALSE)) -> 3 | I13: 0 | J13: 0
A14: 13 | B14: 19 | C14: =IF(ISERROR(VLOOKUP(B14,resultaten!$B$3:$CL$40,2,FALSE)),"",VLOOKUP(B14,resultaten!$B$3:$CL$40,2,FALSE)) -> Marcel Paridaans | D14: =IF(ISERROR(VLOOKUP(B14,resultaten!$B$3:$CL$41,89,FALSE)),0,VLOOKUP(B14,resultaten!$B$3:$CL$41,89,FALSE)) -> 0 | E14: 0 | F14: =IF(ISERROR(VLOOKUP($B14,resultaten!$B$3:$CL$41,3,FALSE)),0,VLOOKUP($B14,resultaten!$B$3:$CL$41,3,FALSE)) -> 44 | G14: =IF(ISERROR(VLOOKUP($B14,resultaten!$B$3:$CL$41,5,FALSE)),0,VLOOKUP($B14,resultaten!$B$3:$CL$41,5,FALSE)) -> 3.38 | H14: =IF(ISERROR(VLOOKUP($B14,resultaten!$B$3:$CL$41,4,FALSE)),0,VLOOKUP($B14,resultaten!$B$3:$CL$41,4,FALSE)) -> 13 | I14: 3.93 | J14: 0
A15: 14 | B15: 18 | C15: =IF(ISERROR(VLOOKUP(B15,resultaten!$B$3:$CL$40,2,FALSE)),"",VLOOKUP(B15,resultaten!$B$3:$CL$40,2,FALSE)) -> Daniëlle Dierckx | D15: =IF(ISERROR(VLOOKUP(B15,resultaten!$B$3:$CL$41,89,FALSE)),0,VLOOKUP(B15,resultaten!$B$3:$CL$41,89,FALSE)) -> 0 | E15: 0 | F15: =IF(ISERROR(VLOOKUP($B15,resultaten!$B$3:$CL$41,3,FALSE)),0,VLOOKUP($B15,resultaten!$B$3:$CL$41,3,FALSE)) -> 10 | G15: =IF(ISERROR(VLOOKUP($B15,resultaten!$B$3:$CL$41,5,FALSE)),0,VLOOKUP($B15,resultaten!$B$3:$CL$41,5,FALSE)) -> 3.33 | H15: =IF(ISERROR(VLOOKUP($B15,resultaten!$B$3:$CL$41,4,FALSE)),0,VLOOKUP($B15,resultaten!$B$3:$CL$41,4,FALSE)) -> 3 | I15: 0 | J15: 0
A16: 15 | B16: 22 | C16: =IF(ISERROR(VLOOKUP(B16,resultaten!$B$3:$CL$40,2,FALSE)),"",VLOOKUP(B16,resultaten!$B$3:$CL$40,2,FALSE)) -> 0 | D16: =IF(ISERROR(VLOOKUP(B16,resultaten!$B$3:$CL$41,89,FALSE)),0,VLOOKUP(B16,resultaten!$B$3:$CL$41,89,FALSE)) -> 0 | E16: 0 | F16: =IF(ISERROR(VLOOKUP($B16,resultaten!$B$3:$CL$41,3,FALSE)),0,VLOOKUP($B16,resultaten!$B$3:$CL$41,3,FALSE)) -> 0 | G16: =IF(ISERROR(VLOOKUP($B16,resultaten!$B$3:$CL$41,5,FALSE)),0,VLOOKUP($B16,resultaten!$B$3:$CL$41,5,FALSE)) -> 0 | H16: =IF(ISERROR(VLOOKUP($B16,resultaten!$B$3:$CL$41,4,FALSE)),0,VLOOKUP($B16,resultaten!$B$3:$CL$41,4,FALSE)) -> 0 | I16: 0 | J16: 0
A17: 16 | B17: 23 | C17: =IF(ISERROR(VLOOKUP(B17,resultaten!$B$3:$CL$40,2,FALSE)),"",VLOOKUP(B17,resultaten!$B$3:$CL$40,2,FALSE)) -> 0 | D17: =IF(ISERROR(VLOOKUP(B17,resultaten!$B$3:$CL$41,89,FALSE)),0,VLOOKUP(B17,resultaten!$B$3:$CL$41,89,FALSE)) -> 0 | E17: 0 | F17: =IF(ISERROR(VLOOKUP($B17,resultaten!$B$3:$CL$41,3,FALSE)),0,VLOOKUP($B17,resultaten!$B$3:$CL$41,3,FALSE)) -> 0 | G17: =IF(ISERROR(VLOOKUP($B17,resultaten!$B$3:$CL$41,5,FALSE)),0,VLOOKUP($B17,resultaten!$B$3:$CL$41,5,FALSE)) -> 0 | H17: =IF(ISERROR(VLOOKUP($B17,resultaten!$B$3:$CL$41,4,FALSE)),0,VLOOKUP($B17,resultaten!$B$3:$CL$41,4,FALSE)) -> 0 | I17: 0 | J17: 0
A18: 17 | B18: 24 | C18: =IF(ISERROR(VLOOKUP(B18,resultaten!$B$3:$CL$40,2,FALSE)),"",VLOOKUP(B18,resultaten!$B$3:$CL$40,2,FALSE)) -> 0 | D18: =IF(ISERROR(VLOOKUP(B18,resultaten!$B$3:$CL$41,89,FALSE)),0,VLOOKUP(B18,resultaten!$B$3:$CL$41,89,FALSE)) -> 0 | E18: 0 | F18: =IF(ISERROR(VLOOKUP($B18,resultaten!$B$3:$CL$41,3,FALSE)),0,VLOOKUP($B18,resultaten!$B$3:$CL$41,3,FALSE)) -> 0 | G18: =IF(ISERROR(VLOOKUP($B18,resultaten!$B$3:$CL$41,5,FALSE)),0,VLOOKUP($B18,resultaten!$B$3:$CL$41,5,FALSE)) -> 0 | H18: =IF(ISERROR(VLOOKUP($B18,resultaten!$B$3:$CL$41,4,FALSE)),0,VLOOKUP($B18,resultaten!$B$3:$CL$41,4,FALSE)) -> 0 | I18: 0 | J18: 0
A19: 18 | B19: 21 | C19: =IF(ISERROR(VLOOKUP(B19,resultaten!$B$3:$CL$40,2,FALSE)),"",VLOOKUP(B19,resultaten!$B$3:$CL$40,2,FALSE)) -> 0 | D19: =IF(ISERROR(VLOOKUP(B19,resultaten!$B$3:$CL$41,89,FALSE)),0,VLOOKUP(B19,resultaten!$B$3:$CL$41,89,FALSE)) -> 0 | E19: 0 | F19: =IF(ISERROR(VLOOKUP($B19,resultaten!$B$3:$CL$41,3,FALSE)),0,VLOOKUP($B19,resultaten!$B$3:$CL$41,3,FALSE)) -> 0 | G19: =IF(ISERROR(VLOOKUP($B19,resultaten!$B$3:$CL$41,5,FALSE)),0,VLOOKUP($B19,resultaten!$B$3:$CL$41,5,FALSE)) -> 0 | H19: =IF(ISERROR(VLOOKUP($B19,resultaten!$B$3:$CL$41,4,FALSE)),0,VLOOKUP($B19,resultaten!$B$3:$CL$41,4,FALSE)) -> 0 | I19: 0 | J19: 0
A20: 19 | B20: 30 | C20: =IF(ISERROR(VLOOKUP(B20,resultaten!$B$3:$CL$40,2,FALSE)),"",VLOOKUP(B20,resultaten!$B$3:$CL$40,2,FALSE)) -> 0 | D20: =IF(ISERROR(VLOOKUP(B20,resultaten!$B$3:$CL$41,89,FALSE)),0,VLOOKUP(B20,resultaten!$B$3:$CL$41,89,FALSE)) -> 0 | E20: 0 | F20: =IF(ISERROR(VLOOKUP($B20,resultaten!$B$3:$CL$41,3,FALSE)),0,VLOOKUP($B20,resultaten!$B$3:$CL$41,3,FALSE)) -> 0 | G20: =IF(ISERROR(VLOOKUP($B20,resultaten!$B$3:$CL$41,5,FALSE)),0,VLOOKUP($B20,resultaten!$B$3:$CL$41,5,FALSE)) -> 0 | H20: =IF(ISERROR(VLOOKUP($B20,resultaten!$B$3:$CL$41,4,FALSE)),0,VLOOKUP($B20,resultaten!$B$3:$CL$41,4,FALSE)) -> 0 | I20: 0 | J20: 0
A21: 20 | B21: 6 | C21: =IF(ISERROR(VLOOKUP(B21,resultaten!$B$3:$CL$40,2,FALSE)),"",VLOOKUP(B21,resultaten!$B$3:$CL$40,2,FALSE)) -> Ingrid van Dongen | D21: =IF(ISERROR(VLOOKUP(B21,resultaten!$B$3:$CL$41,89,FALSE)),"",VLOOKUP(B21,resultaten!$B$3:$CL$41,89,FALSE)) -> 0 | E21: 0 | F21: =IF(ISERROR(VLOOKUP($B21,resultaten!$B$3:$CL$41,3,FALSE)),"",VLOOKUP($B21,resultaten!$B$3:$CL$41,3,FALSE)) -> 0 | G21: =IF(ISERROR(VLOOKUP($B21,resultaten!$B$3:$CL$41,5,FALSE)),"",VLOOKUP($B21,resultaten!$B$3:$CL$41,5,FALSE)) -> 0 | H21: =IF(ISERROR(VLOOKUP($B21,resultaten!$B$3:$CL$41,4,FALSE)),"",VLOOKUP($B21,resultaten!$B$3:$CL$41,4,FALSE)) -> 0 | I21: 0 | J21: 0 | K21: =IF(OR(I21=0,J21=0,J21<I21),"",J21-I21) -> 
A22: 21 | B22: 12 | C22: =IF(ISERROR(VLOOKUP(B22,resultaten!$B$3:$CL$40,2,FALSE)),"",VLOOKUP(B22,resultaten!$B$3:$CL$40,2,FALSE)) -> Harry Kloppenburg | D22: =IF(ISERROR(VLOOKUP(B22,resultaten!$B$3:$CL$41,89,FALSE)),"",VLOOKUP(B22,resultaten!$B$3:$CL$41,89,FALSE)) -> 0 | E22: 0 | F22: =IF(ISERROR(VLOOKUP($B22,resultaten!$B$3:$CL$41,3,FALSE)),"",VLOOKUP($B22,resultaten!$B$3:$CL$41,3,FALSE)) -> 0 | G22: =IF(ISERROR(VLOOKUP($B22,resultaten!$B$3:$CL$41,5,FALSE)),"",VLOOKUP($B22,resultaten!$B$3:$CL$41,5,FALSE)) -> 0 | H22: =IF(ISERROR(VLOOKUP($B22,resultaten!$B$3:$CL$41,4,FALSE)),"",VLOOKUP($B22,resultaten!$B$3:$CL$41,4,FALSE)) -> 0 | I22: 0 | J22: 0
A23: 22 | B23: 26 | C23: =IF(ISERROR(VLOOKUP(B23,resultaten!$B$3:$CL$40,2,FALSE)),"",VLOOKUP(B23,resultaten!$B$3:$CL$40,2,FALSE)) -> 0 | D23: =IF(ISERROR(VLOOKUP(B23,resultaten!$B$3:$CL$41,89,FALSE)),"",VLOOKUP(B23,resultaten!$B$3:$CL$41,89,FALSE)) -> 0 | E23: 0 | F23: =IF(ISERROR(VLOOKUP($B23,resultaten!$B$3:$CL$41,3,FALSE)),"",VLOOKUP($B23,resultaten!$B$3:$CL$41,3,FALSE)) -> 0 | G23: =IF(ISERROR(VLOOKUP($B23,resultaten!$B$3:$CL$41,5,FALSE)),"",VLOOKUP($B23,resultaten!$B$3:$CL$41,5,FALSE)) -> 0 | H23: =IF(ISERROR(VLOOKUP($B23,resultaten!$B$3:$CL$41,4,FALSE)),"",VLOOKUP($B23,resultaten!$B$3:$CL$41,4,FALSE)) -> 0 | I23: 0 | J23: 0
A24: 23 | B24: 25 | C24: =IF(ISERROR(VLOOKUP(B24,resultaten!$B$3:$CL$40,2,FALSE)),"",VLOOKUP(B24,resultaten!$B$3:$CL$40,2,FALSE)) -> 0 | D24: =IF(ISERROR(VLOOKUP(B24,resultaten!$B$3:$CL$41,89,FALSE)),"",VLOOKUP(B24,resultaten!$B$3:$CL$41,89,FALSE)) -> 0 | E24: 0 | F24: =IF(ISERROR(VLOOKUP($B24,resultaten!$B$3:$CL$41,3,FALSE)),"",VLOOKUP($B24,resultaten!$B$3:$CL$41,3,FALSE)) -> 0 | G24: =IF(ISERROR(VLOOKUP($B24,resultaten!$B$3:$CL$41,5,FALSE)),"",VLOOKUP($B24,resultaten!$B$3:$CL$41,5,FALSE)) -> 0 | H24: =IF(ISERROR(VLOOKUP($B24,resultaten!$B$3:$CL$41,4,FALSE)),"",VLOOKUP($B24,resultaten!$B$3:$CL$41,4,FALSE)) -> 0 | I24: 0 | J24: 0
A25: 24 | B25: 16 | C25: =IF(ISERROR(VLOOKUP(B25,resultaten!$B$3:$CL$40,2,FALSE)),"",VLOOKUP(B25,resultaten!$B$3:$CL$40,2,FALSE)) -> Cees Jansen | D25: =IF(ISERROR(VLOOKUP(B25,resultaten!$B$3:$CL$41,89,FALSE)),"",VLOOKUP(B25,resultaten!$B$3:$CL$41,89,FALSE)) -> 0 | E25: 0 | F25: =IF(ISERROR(VLOOKUP($B25,resultaten!$B$3:$CL$41,3,FALSE)),"",VLOOKUP($B25,resultaten!$B$3:$CL$41,3,FALSE)) -> 0 | G25: =IF(ISERROR(VLOOKUP($B25,resultaten!$B$3:$CL$41,5,FALSE)),"",VLOOKUP($B25,resultaten!$B$3:$CL$41,5,FALSE)) -> 0 | H25: =IF(ISERROR(VLOOKUP($B25,resultaten!$B$3:$CL$41,4,FALSE)),"",VLOOKUP($B25,resultaten!$B$3:$CL$41,4,FALSE)) -> 0 | I25: 0 | J25: 0
A26: 25 | B26: 27 | C26: =IF(ISERROR(VLOOKUP(B26,resultaten!$B$3:$CL$40,2,FALSE)),"",VLOOKUP(B26,resultaten!$B$3:$CL$40,2,FALSE)) -> 0 | D26: =IF(ISERROR(VLOOKUP(B26,resultaten!$B$3:$CL$41,89,FALSE)),"",VLOOKUP(B26,resultaten!$B$3:$CL$41,89,FALSE)) -> 0 | E26: 0 | F26: =IF(ISERROR(VLOOKUP($B26,resultaten!$B$3:$CL$41,3,FALSE)),"",VLOOKUP($B26,resultaten!$B$3:$CL$41,3,FALSE)) -> 0 | G26: =IF(ISERROR(VLOOKUP($B26,resultaten!$B$3:$CL$41,5,FALSE)),"",VLOOKUP($B26,resultaten!$B$3:$CL$41,5,FALSE)) -> 0 | H26: =IF(ISERROR(VLOOKUP($B26,resultaten!$B$3:$CL$41,4,FALSE)),"",VLOOKUP($B26,resultaten!$B$3:$CL$41,4,FALSE)) -> 0 | I26: 0 | J26: 0
A27: 26 | B27: 20 | C27: =IF(ISERROR(VLOOKUP(B27,resultaten!$B$3:$CL$40,2,FALSE)),"",VLOOKUP(B27,resultaten!$B$3:$CL$40,2,FALSE)) -> 0 | D27: =IF(ISERROR(VLOOKUP(B27,resultaten!$B$3:$CL$41,89,FALSE)),"",VLOOKUP(B27,resultaten!$B$3:$CL$41,89,FALSE)) -> 0 | E27: 0 | F27: =IF(ISERROR(VLOOKUP($B27,resultaten!$B$3:$CL$41,3,FALSE)),"",VLOOKUP($B27,resultaten!$B$3:$CL$41,3,FALSE)) -> 0 | G27: =IF(ISERROR(VLOOKUP($B27,resultaten!$B$3:$CL$41,5,FALSE)),"",VLOOKUP($B27,resultaten!$B$3:$CL$41,5,FALSE)) -> 0 | H27: =IF(ISERROR(VLOOKUP($B27,resultaten!$B$3:$CL$41,4,FALSE)),"",VLOOKUP($B27,resultaten!$B$3:$CL$41,4,FALSE)) -> 0 | I27: 0 | J27: 0
A28: 27 | B28: 29 | C28: =IF(ISERROR(VLOOKUP(B28,resultaten!$B$3:$CL$40,2,FALSE)),"",VLOOKUP(B28,resultaten!$B$3:$CL$40,2,FALSE)) -> 0 | D28: =IF(ISERROR(VLOOKUP(B28,resultaten!$B$3:$CL$41,89,FALSE)),"",VLOOKUP(B28,resultaten!$B$3:$CL$41,89,FALSE)) -> 0 | E28: 0 | F28: =IF(ISERROR(VLOOKUP($B28,resultaten!$B$3:$CL$41,3,FALSE)),"",VLOOKUP($B28,resultaten!$B$3:$CL$41,3,FALSE)) -> 0 | G28: =IF(ISERROR(VLOOKUP($B28,resultaten!$B$3:$CL$41,5,FALSE)),"",VLOOKUP($B28,resultaten!$B$3:$CL$41,5,FALSE)) -> 0 | H28: =IF(ISERROR(VLOOKUP($B28,resultaten!$B$3:$CL$41,4,FALSE)),"",VLOOKUP($B28,resultaten!$B$3:$CL$41,4,FALSE)) -> 0 | I28: 0 | J28: 0
A29: 28 | B29: 15 | C29: =IF(ISERROR(VLOOKUP(B29,resultaten!$B$3:$CL$40,2,FALSE)),"",VLOOKUP(B29,resultaten!$B$3:$CL$40,2,FALSE)) -> Sjaan Paridaans | D29: =IF(ISERROR(VLOOKUP(B29,resultaten!$B$3:$CL$41,89,FALSE)),"",VLOOKUP(B29,resultaten!$B$3:$CL$41,89,FALSE)) -> 0 | E29: 0 | F29: =IF(ISERROR(VLOOKUP($B29,resultaten!$B$3:$CL$41,3,FALSE)),"",VLOOKUP($B29,resultaten!$B$3:$CL$41,3,FALSE)) -> 0 | G29: =IF(ISERROR(VLOOKUP($B29,resultaten!$B$3:$CL$41,5,FALSE)),"",VLOOKUP($B29,resultaten!$B$3:$CL$41,5,FALSE)) -> 0 | H29: =IF(ISERROR(VLOOKUP($B29,resultaten!$B$3:$CL$41,4,FALSE)),"",VLOOKUP($B29,resultaten!$B$3:$CL$41,4,FALSE)) -> 0 | I29: 0 | J29: 0
A30: 29 | B30: 28 | C30: =IF(ISERROR(VLOOKUP(B30,resultaten!$B$3:$CL$40,2,FALSE)),"",VLOOKUP(B30,resultaten!$B$3:$CL$40,2,FALSE)) -> 0 | D30: =IF(ISERROR(VLOOKUP(B30,resultaten!$B$3:$CL$41,89,FALSE)),"",VLOOKUP(B30,resultaten!$B$3:$CL$41,89,FALSE)) -> 0 | E30: 0 | F30: =IF(ISERROR(VLOOKUP($B30,resultaten!$B$3:$CL$41,3,FALSE)),"",VLOOKUP($B30,resultaten!$B$3:$CL$41,3,FALSE)) -> 0 | G30: =IF(ISERROR(VLOOKUP($B30,resultaten!$B$3:$CL$41,5,FALSE)),"",VLOOKUP($B30,resultaten!$B$3:$CL$41,5,FALSE)) -> 0 | H30: =IF(ISERROR(VLOOKUP($B30,resultaten!$B$3:$CL$41,4,FALSE)),"",VLOOKUP($B30,resultaten!$B$3:$CL$41,4,FALSE)) -> 0 | I30: 0 | J30: 0
C31: =IF(ISERROR(VLOOKUP(B31,resultaten!$B$3:$CL$40,2,FALSE)),"",VLOOKUP(B31,resultaten!$B$3:$CL$40,2,FALSE)) ->  | D31: =IF(ISERROR(VLOOKUP(B31,resultaten!$B$3:$CL$41,89,FALSE)),0,VLOOKUP(B31,resultaten!$B$3:$CL$41,89,FALSE)) -> 0 | E31: 0 | F31: =IF(ISERROR(VLOOKUP($B31,resultaten!$B$3:$CL$41,3,FALSE)),0,VLOOKUP($B31,resultaten!$B$3:$CL$41,3,FALSE)) -> 0 | G31: =IF(ISERROR(VLOOKUP($B31,resultaten!$B$3:$CL$41,5,FALSE)),0,VLOOKUP($B31,resultaten!$B$3:$CL$41,5,FALSE)) -> 0 | H31: =IF(ISERROR(VLOOKUP($B31,resultaten!$B$3:$CL$41,4,FALSE)),0,VLOOKUP($B31,resultaten!$B$3:$CL$41,4,FALSE)) -> 0 | I31: 0 | J31: 0
A32: 31 | C32: =IF(ISERROR(VLOOKUP(B32,resultaten!$B$3:$CL$40,2,FALSE)),"",VLOOKUP(B32,resultaten!$B$3:$CL$40,2,FALSE)) ->  | D32: =IF(ISERROR(VLOOKUP(B32,resultaten!$B$3:$CL$41,89,FALSE)),0,VLOOKUP(B32,resultaten!$B$3:$CL$41,89,FALSE)) -> 0 | E32: 0 | F32: =IF(ISERROR(VLOOKUP($B32,resultaten!$B$3:$CL$41,3,FALSE)),0,VLOOKUP($B32,resultaten!$B$3:$CL$41,3,FALSE)) -> 0 | G32: =IF(ISERROR(VLOOKUP($B32,resultaten!$B$3:$CL$41,5,FALSE)),0,VLOOKUP($B32,resultaten!$B$3:$CL$41,5,FALSE)) -> 0 | H32: =IF(ISERROR(VLOOKUP($B32,resultaten!$B$3:$CL$41,4,FALSE)),0,VLOOKUP($B32,resultaten!$B$3:$CL$41,4,FALSE)) -> 0 | I32: 2 | J32: 0
A33: 32 | C33: =IF(ISERROR(VLOOKUP(B33,resultaten!$B$3:$CL$40,2,FALSE)),"",VLOOKUP(B33,resultaten!$B$3:$CL$40,2,FALSE)) ->  | D33: =IF(ISERROR(VLOOKUP(B33,resultaten!$B$3:$CL$41,89,FALSE)),0,VLOOKUP(B33,resultaten!$B$3:$CL$41,89,FALSE)) -> 0 | E33: 0 | F33: =IF(ISERROR(VLOOKUP($B33,resultaten!$B$3:$CL$41,3,FALSE)),0,VLOOKUP($B33,resultaten!$B$3:$CL$41,3,FALSE)) -> 0 | G33: =IF(ISERROR(VLOOKUP($B33,resultaten!$B$3:$CL$41,5,FALSE)),0,VLOOKUP($B33,resultaten!$B$3:$CL$41,5,FALSE)) -> 0 | H33: =IF(ISERROR(VLOOKUP($B33,resultaten!$B$3:$CL$41,4,FALSE)),0,VLOOKUP($B33,resultaten!$B$3:$CL$41,4,FALSE)) -> 0 | I33: 3 | J33: 0
A34: 33 | C34: =IF(ISERROR(VLOOKUP(B34,resultaten!$B$3:$CL$40,2,FALSE)),"",VLOOKUP(B34,resultaten!$B$3:$CL$40,2,FALSE)) ->  | D34: =IF(ISERROR(VLOOKUP(B34,resultaten!$B$3:$CL$41,89,FALSE)),0,VLOOKUP(B34,resultaten!$B$3:$CL$41,89,FALSE)) -> 0 | E34: 0 | F34: =IF(ISERROR(VLOOKUP($B34,resultaten!$B$3:$CL$41,3,FALSE)),0,VLOOKUP($B34,resultaten!$B$3:$CL$41,3,FALSE)) -> 0 | G34: =IF(ISERROR(VLOOKUP($B34,resultaten!$B$3:$CL$41,5,FALSE)),0,VLOOKUP($B34,resultaten!$B$3:$CL$41,5,FALSE)) -> 0 | H34: =IF(ISERROR(VLOOKUP($B34,resultaten!$B$3:$CL$41,4,FALSE)),0,VLOOKUP($B34,resultaten!$B$3:$CL$41,4,FALSE)) -> 0 | I34: 4 | J34: 0
A35: 34 | C35: =IF(ISERROR(VLOOKUP(B35,resultaten!$B$3:$CL$40,2,FALSE)),"",VLOOKUP(B35,resultaten!$B$3:$CL$40,2,FALSE)) ->  | D35: =IF(ISERROR(VLOOKUP(B35,resultaten!$B$3:$CL$41,89,FALSE)),0,VLOOKUP(B35,resultaten!$B$3:$CL$41,89,FALSE)) -> 0 | E35: 0 | F35: =IF(ISERROR(VLOOKUP($B35,resultaten!$B$3:$CL$41,3,FALSE)),0,VLOOKUP($B35,resultaten!$B$3:$CL$41,3,FALSE)) -> 0 | G35: =IF(ISERROR(VLOOKUP($B35,resultaten!$B$3:$CL$41,5,FALSE)),0,VLOOKUP($B35,resultaten!$B$3:$CL$41,5,FALSE)) -> 0 | H35: =IF(ISERROR(VLOOKUP($B35,resultaten!$B$3:$CL$41,4,FALSE)),0,VLOOKUP($B35,resultaten!$B$3:$CL$41,4,FALSE)) -> 0 | I35: 5 | J35: 0
A36: 35 | C36: =IF(ISERROR(VLOOKUP(B36,resultaten!$B$3:$CL$40,2,FALSE)),"",VLOOKUP(B36,resultaten!$B$3:$CL$40,2,FALSE)) ->  | D36: =IF(ISERROR(VLOOKUP(B36,resultaten!$B$3:$CL$41,89,FALSE)),0,VLOOKUP(B36,resultaten!$B$3:$CL$41,89,FALSE)) -> 0 | E36: 0 | F36: =IF(ISERROR(VLOOKUP($B36,resultaten!$B$3:$CL$41,3,FALSE)),0,VLOOKUP($B36,resultaten!$B$3:$CL$41,3,FALSE)) -> 0 | G36: =IF(ISERROR(VLOOKUP($B36,resultaten!$B$3:$CL$41,5,FALSE)),0,VLOOKUP($B36,resultaten!$B$3:$CL$41,5,FALSE)) -> 0 | H36: =IF(ISERROR(VLOOKUP($B36,resultaten!$B$3:$CL$41,4,FALSE)),0,VLOOKUP($B36,resultaten!$B$3:$CL$41,4,FALSE)) -> 0 | I36: 6 | J36: 0
A37: 36 | C37: =IF(ISERROR(VLOOKUP(B37,resultaten!$B$3:$CL$40,2,FALSE)),"",VLOOKUP(B37,resultaten!$B$3:$CL$40,2,FALSE)) ->  | D37: =IF(ISERROR(VLOOKUP(B37,resultaten!$B$3:$CL$41,89,FALSE)),0,VLOOKUP(B37,resultaten!$B$3:$CL$41,89,FALSE)) -> 0 | E37: 0 | F37: =IF(ISERROR(VLOOKUP($B37,resultaten!$B$3:$CL$41,3,FALSE)),0,VLOOKUP($B37,resultaten!$B$3:$CL$41,3,FALSE)) -> 0 | G37: =IF(ISERROR(VLOOKUP($B37,resultaten!$B$3:$CL$41,5,FALSE)),0,VLOOKUP($B37,resultaten!$B$3:$CL$41,5,FALSE)) -> 0 | H37: =IF(ISERROR(VLOOKUP($B37,resultaten!$B$3:$CL$41,4,FALSE)),0,VLOOKUP($B37,resultaten!$B$3:$CL$41,4,FALSE)) -> 0 | I37: 7 | J37: 0
A38: 37 | C38: =IF(ISERROR(VLOOKUP(B38,resultaten!$B$3:$CL$40,2,FALSE)),"",VLOOKUP(B38,resultaten!$B$3:$CL$40,2,FALSE)) ->  | D38: =IF(ISERROR(VLOOKUP(B38,resultaten!$B$3:$CL$41,89,FALSE)),0,VLOOKUP(B38,resultaten!$B$3:$CL$41,89,FALSE)) -> 0 | E38: 0 | F38: =IF(ISERROR(VLOOKUP($B38,resultaten!$B$3:$CL$41,3,FALSE)),0,VLOOKUP($B38,resultaten!$B$3:$CL$41,3,FALSE)) -> 0 | G38: =IF(ISERROR(VLOOKUP($B38,resultaten!$B$3:$CL$41,5,FALSE)),0,VLOOKUP($B38,resultaten!$B$3:$CL$41,5,FALSE)) -> 0 | H38: =IF(ISERROR(VLOOKUP($B38,resultaten!$B$3:$CL$41,4,FALSE)),0,VLOOKUP($B38,resultaten!$B$3:$CL$41,4,FALSE)) -> 0 | I38: 8 | J38: 0
A39: 38 | C39: =IF(ISERROR(VLOOKUP(B39,resultaten!$B$3:$CL$40,2,FALSE)),"",VLOOKUP(B39,resultaten!$B$3:$CL$40,2,FALSE)) ->  | D39: =IF(ISERROR(VLOOKUP(B39,resultaten!$B$3:$CL$41,89,FALSE)),0,VLOOKUP(B39,resultaten!$B$3:$CL$41,89,FALSE)) -> 0 | E39: 0 | F39: =IF(ISERROR(VLOOKUP($B39,resultaten!$B$3:$CL$41,3,FALSE)),0,VLOOKUP($B39,resultaten!$B$3:$CL$41,3,FALSE)) -> 0 | G39: =IF(ISERROR(VLOOKUP($B39,resultaten!$B$3:$CL$41,5,FALSE)),0,VLOOKUP($B39,resultaten!$B$3:$CL$41,5,FALSE)) -> 0 | H39: =IF(ISERROR(VLOOKUP($B39,resultaten!$B$3:$CL$41,4,FALSE)),0,VLOOKUP($B39,resultaten!$B$3:$CL$41,4,FALSE)) -> 0 | I39: 9 | J39: 0
A40: 39 | C40: =IF(ISERROR(VLOOKUP(B40,resultaten!$B$3:$CL$40,2,FALSE)),"",VLOOKUP(B40,resultaten!$B$3:$CL$40,2,FALSE)) ->  | D40: =IF(ISERROR(VLOOKUP(B40,resultaten!$B$3:$CL$41,89,FALSE)),0,VLOOKUP(B40,resultaten!$B$3:$CL$41,89,FALSE)) -> 0 | E40: 0 | F40: =IF(ISERROR(VLOOKUP($B40,resultaten!$B$3:$CL$41,3,FALSE)),0,VLOOKUP($B40,resultaten!$B$3:$CL$41,3,FALSE)) -> 0 | G40: =IF(ISERROR(VLOOKUP($B40,resultaten!$B$3:$CL$41,5,FALSE)),0,VLOOKUP($B40,resultaten!$B$3:$CL$41,5,FALSE)) -> 0 | H40: =IF(ISERROR(VLOOKUP($B40,resultaten!$B$3:$CL$41,4,FALSE)),0,VLOOKUP($B40,resultaten!$B$3:$CL$41,4,FALSE)) -> 0 | I40: 10 | J40: 0
A41: 40

Sheet deelnemers
A1: Nr. | B1: Naam
A2: 1 | B2: Martien van Woerkum
A3: 2 | B3: Jack de Graaf
A4: 3 | B4: Nico Borgmans
A5: 4 | B5: Cees Brekelmans
A6: 5 | B6: Christ van Dongen
A7: 6 | B7: Ingrid van Dongen
A8: 7 | B8: Jeroen van Dongen
A9: 8 | B9: Dave Geysen
A10: 9 | B10: Gust Gijbels
A11: 10 | B11: Jos Wouters
A12: 11 | B12: Wim van Rooij
A13: 12 | B13: Harry Kloppenburg
A14: 13 | B14: Olav Kruijssen
A15: 14 | B15: Bart de Laat
A16: 15 | B16: Sjaan Paridaans
A17: 16 | B17: Cees Jansen
A18: 17 | B18: Marly Paridaans
A19: 18 | B19: Daniëlle Dierckx
A20: 19 | B20: Marcel Paridaans
A21: 20
A22: 21
A23: 22
A24: 23
A25: 24
A26: 25
A27: 26
A28: 27
A29: 28
A30: 29
A31: 30
A32: 31
A33: 32
A34: 33
A35: 34
A36: 35
A37: 36
A38: 37
A39: 38
A40: 39
A41: 40

Sheet print.kopieren speciaal!!
A1: Nr | B1: Naam Deelnemers | C1: Stand | D1: Aantal B15 | E1: Gem B15 | F1: Aantal Totaal | G1: Gem Totaal | H1: Beurten tot. | I1: Tussenstand | J1: Hoog | K1: Laag

Sheet uitleg
A2: a | B2: Vul alleen de gemarkeerde velden in !!
B3: Begin in blad Deelnemers met de namen. Deze worden overgenomen
B4: in het blad Resultaten. De totalen van Resultaten, worden weer opgenomen
B5: in blad Deelnemers. Let op NIET sorteren!!!
B6: Bij de eerste beurt de NUL overschrijven.
B7: De STAND in blad Deelnemers wordt pas berekend na 15 beurten!!
B8: De Tussenstand en de Stand worden voor alle deelnemers weergegeven, dus ook voor
B9: de deelnemers met 0 beurten. | E9: Let op Niet sorteren!!!
A11: b | B11: Voor printen totaallijst kopieer blad deelnemers naar blad Print.kopieren speciaal
B12: Kies daar voor WAARDEN.
B13: Hierna kan gesorteerd worden op alle aanwezige kolommen.
B14: Sorteer bijvoorbeeld op STAND. Veldnaamrij!!!
B15: etc.
A17: c | B17: Leegmaken blad Resultaten.
B18: Selecteer alle gemarkeerde gevulde cellen.
B19: Kies Bewerken, in dit menu Kies GA NAAR, in dit menu Kies SPECIAAL,
B20: vervolgens ZICHTBARE CELLEN, bevestig dit en Druk DELete.
B21: Doe je dit niet, dan worden ook alle formules verwijderd!!!
B22: Vul daarna in blad Resultaten bij alle deelnemers bij de EERSTE beurt 0 (NUL) in,
B23: anders zullen formules geen resultaten meer opleveren!!
B24: Een andere optie:
B25: Gebruik voor elke competitie een nieuwe kopie van dit bestand.
